Cogmind - Beta 10.2 @@@ ROGUE MODE // 2022.01.03 @ 00:49:06 Player: Floating Point Exception Result: Destroyed by P-80 Master with Gamma Rifle Performance ------------- Evolutions (7) 3500 Regions Visited (16) 3200 Robots Destroyed (178) 890 Value Destroyed (4355) 4355 Prototype IDs (12) 240 Alien Tech Used (0) 0 Bonus (1462) 1462 TOTAL SCORE: 13647 Bonus ------- High Alert Combat Kills 174 Follower Combat Kills 1053 Met Zhirov 300 Read Decrypted Archives 300 Friendly Fire -365 Cogmind --------- Core Integrity 0/1300 Matter 108/300 Energy 100/100 System Corruption 3% Temperature Cool (0) Movement Core (50) Location -3/Armory Parts ------- > --- POWER (2) -------- (None) > --- PROPULSION (4) --- (None) > --- UTILITY (13) ----- Advanced Core Analyzer > --- WEAPON (2) ------- (None) > --- INVENTORY (4) ---- Improved Lightning Gun Light Antimatter Cannon Micro-nuke Launcher Peak State ------------ > --- POWER ------------ Light Antimatter Reactor > --- PROPULSION ------- Cooled Gravmag System Cooled Gravmag System Improved Linear Gravjet Improved Linear Gravjet > --- UTILITY ---------- Medium Storage Unit Advanced Visual Processing Unit Advanced Core Analyzer Microactuators Microactuators Microactuators Hardened Light Armor Plating Hardened Light Armor Plating Hardened Light Armor Plating Hardened Light Armor Plating Hardened Light Armor Plating Advanced Shield Generator Hacking Suite > --- WEAPON ----------- Light Antimatter Cannon Micro-nuke Launcher > --- INVENTORY -------- Improved Gyrokinetic Inverter Q-thruster Impulse Thruster Array Compact Battery Light Antimatter Cannon Micro-nuke Launcher [Rating: 97] Favorites ----------- Power Heavy Ion Engine Engine Heavy Ion Engine Power Core Micro Fission Core Reactor Light Antimatter Reactor Propulsion Advanced Treads Treads Advanced Treads Leg Carbon-fiber Leg Wheel Armored Wheel Hover Unit Airjet Flight Unit Cooled VTOL Module Utility Hacking Suite Device Advanced Sensor Array Storage Large Storage Unit Processor Advanced Visual Processing Unit Hackware Hacking Suite Protection Hardened Light Armor Plating Weapon Axe Energy Gun EM Shotgun Energy Cannon Particle Cannon Ballistic Gun Shotgun Ballistic Cannon Light Antimatter Cannon Launcher Advanced EMP Blaster Impact Weapon Power Maul Slashing Weapon Axe Build | -11 -10 -9 -8 -8 -8 -6 -6 -6 -5 -4 -4 -4 -4 -4 -3 -3 ------- Run | Scr Mat Mat Mat Sto Rec Fac Was Fac Fac Fac Ext Cet Arc Hub Res Arm Slots Evolved 14 | . . 2 2 . . 4 . . 2 2 . . . . 2 . Power 1 | . . . . . . . . . . . . . . . 1 . Propulsion 2 | . . 1 . . . . . . . . . . . . 1 . Utility 11 | . . 1 2 . . 4 . . 2 2 . . . . . . Weapon . | . . . . . . . . . . . . . . . . . Parts Attached 196 | 7 16 22 33 9 4 14 . 13 8 14 16 4 . 17 14 5 Power 14 | 1 . 3 1 1 . . . 1 2 1 3 . . 1 . . Engine 6 | 1 . 3 1 1 . . . . . . . . . . . . Core 7 | . . . . . . . . 1 2 1 3 . . . . . Reactor 1 | . . . . . . . . . . . . . . 1 . . Propulsion 55 | 2 3 7 9 1 . 3 . 7 3 1 4 3 . 5 3 4 Treads 13 | 2 . 6 5 . . . . . . . . . . . . . Leg 8 | . 3 1 3 1 . . . . . . . . . . . . Wheel 1 | . . . 1 . . . . . . . . . . . . . Hover 13 | . . . . . . 3 . 1 . . . . . 5 3 1 Flight 20 | . . . . . . . . 6 3 1 4 3 . . . 3 Utility 61 | 1 4 2 3 1 1 9 . 5 3 11 5 1 . 7 7 1 Device 25 | . . . 2 . . 1 . 3 1 9 3 1 . . 5 . Storage 9 | 1 2 2 1 . . 1 . . . . . . . . 1 1 Processor 6 | . . . . . . 2 . 1 1 . 1 . . . 1 . Hackware 9 | . . . . . . 5 . 1 1 2 . . . . . . Protection 12 | . 2 . . 1 1 . . . . . 1 . . 7 . . Artifact . | . . . . . . . . . . . . . . . . . Weapon 66 | 3 9 10 20 6 3 2 . . . 1 4 . . 4 4 . Energy Gun 20 | 2 3 3 8 2 1 . . . . . 1 . . . . . Energy Cannon 1 | . . 1 . . . . . . . . . . . . . . Ballistic Gun 15 | 1 3 4 3 1 1 . . . . . 2 . . . . . Ballistic Cannon 1 | . . . . . . . . . . . . . . . 1 . Launcher 19 | . 3 1 8 2 1 . . . . . . . . 2 2 . Special Weapon . | . . . . . . . . . . . . . . . . . Impact Weapon 3 | . . . . . . . . . . . . . . 2 1 . Slashing Weapon 7 | . . 1 1 1 . 2 . . . 1 1 . . . . . Piercing Weapon . | . . . . . . . . . . . . . . . . . Special Melee Weapon . | . . . . . . . . . . . . . . . . . Unidentified Prototypes 5 | . . . 2 . . . . . . 1 . . . 1 1 . Parts Lost 57 | . . 4 4 . 2 . . 3 1 4 13 9 . 2 6 9 Power 4 | . . 1 . . . . . . . 1 1 . . . . 1 Propulsion 16 | . . . 2 . 1 . . 1 . . 2 3 . 1 2 4 Utility 27 | . . . . . . . . 2 1 2 9 4 . 1 4 4 Weapon 10 | . . 3 2 . 1 . . . . 1 1 2 . . . . Highest Loss Streak 6 | . . 2 3 . 2 . . 1 1 4 6 5 . 2 4 5 Average Slot Usage (%) 92 | . 94 99 97 98 99 98 100 98 96 94 88 53 21 34 79 33 Engine 6 | . 14 11 9 8 9 6 6 1 . . . . . . . . Core 1 | . . . . . . . . 4 5 5 4 4 . . . . Treads 10 | . 6 29 21 . . . . . . . . . . . . . Leg 6 | . 21 3 3 24 26 . . . . . . . . . . . Hover 1 | . . . . . . 20 20 5 . . . . . 7 18 1 Flight 4 | . . . . . . . . 14 16 15 14 10 5 . . 6 Device 5 | . . . 8 6 . 6 6 7 10 12 8 8 . . 14 . Storage 19 | . 16 32 35 36 36 9 6 1 . . . . . . 2 4 Processor 4 | . . . . . . 11 13 13 11 10 10 5 5 5 6 7 Hackware 12 | . . . . . . 28 33 35 37 40 38 15 10 5 2 . Protection 2 | . 6 . . 2 9 . . . . . 1 1 . 7 21 8 Energy Gun 5 | . 13 11 6 2 4 . . . . . . . . . . . Ballistic Gun 5 | . 13 10 8 13 4 1 . . . . 1 . . . . . Launcher 1 | . . . 2 2 8 1 . . . . . . . . 1 . Slashing Weapon 3 | . . . . . . 9 13 13 11 9 5 6 . . . . Naked Turns . | . . . . . . . . . . . . . . . . . Heaviest Build 101 | 11 40 75 97 99 101 23 23 23 15 18 24 19 . 51 72 35 Greatest Support 75 | 40 40 66 75 56 47 27 27 34 19 19 26 30 5 55 64 38 Greatest Overweight (x) 6 | 1 1 2 4 2 3 . . . 1 . 6 6 . 1 1 4 Average Overweight (x) . | . . . 1 1 2 . . . . . . . . . . . Largest Inventory Capacity 30 | 6 16 24 30 30 30 30 8 8 4 4 4 4 4 4 8 8 Average Capacity 16 | 5 7 22 29 30 30 13 8 5 4 4 4 4 4 4 6 7 Most Carried 30 | 6 11 22 30 30 30 29 8 8 4 4 4 4 1 4 8 8 Average Carried 15 | 4 6 20 28 29 29 11 8 4 3 3 3 1 1 2 5 7 Final Capacity 30 | 6 16 24 30 30 30 8 8 4 4 4 4 4 4 4 8 4 Final Carried 30 | 6 11 22 29 30 30 8 8 4 4 4 4 1 1 3 7 3 Class Distribution -------------------- 48% | Hauler-Mutant 14% | Mutant 12% | Wizard-Ninja 8% | Hacker-Scout 7% | Wizard-Sprinter Dominant Class ---------------- Mutant | -10/Materials Hauler-Mutant | -9/Materials Hauler-Mutant | -8/Materials Hauler-Mutant | -8/Storage Hauler-Mutant | -8/Recycling Hacker-Scout | -6/Factory Hacker-Scout | -6/Waste Hacker-Scout | -6/Factory Wizard-Ninja | -5/Factory Wizard-Sprinter | -4/Factory Wizard-Ninja | -4/Extension Hacker-Mutant | -4/Cetus Hacker-Mutant | -4/Archives Mutant | -4/Hub_04(d) Mutant | -3/Research Mutant | -3/Armory Resources | -11 -10 -9 -8 -8 -8 -6 -6 -6 -5 -4 -4 -4 -4 -4 -3 -3 ----------- Run | Scr Mat Mat Mat Sto Rec Fac Was Fac Fac Fac Ext Cet Arc Hub Res Arm Matter Collected 3521 | 208 190 825 595 422 275 . 161 115 20 195 192 . . 98 134 91 Remotely . | . . . . . . . . . . . . . . . . . Salvage Created 7053 | . 228 1406 1774 422 1177 . . 274 23 402 894 . . 236 217 . Parts 395 | . 17 100 108 35 58 . . 17 3 18 30 . . 3 6 . Haulers Intercepted 19 | . . 4 4 2 . . . 1 . 1 5 . . 2 . . Recyclers Shooed 7 | . . 3 2 . 1 . . . . . . . . . 1 . Parts Field Recycled . | . . . . . . . . . . . . . . . . . Retrieved Matter . | . . . . . . . . . . . . . . . . . Parts Self-Destructed . | . . . . . . . . . . . . . . . . . Prevented . | . . . . . . . . . . . . . . . . . Kills | -11 -10 -9 -8 -8 -8 -6 -6 -6 -5 -4 -4 -4 -4 -4 -3 -3 ------- Run | Scr Mat Mat Mat Sto Rec Fac Was Fac Fac Fac Ext Cet Arc Hub Res Arm Combat Hostiles Destroyed 109 | . 8 24 31 8 23 . . 3 . 1 6 . . 1 4 . Melee 5 | . . . . . . . . 3 . 1 1 . . . . . Guns 53 | . 3 22 15 4 4 . . . . . 5 . . . . . Cannons 2 | . . 1 . . . . . . . . . . . . 1 . AOE 45 | . 5 1 13 4 18 . . . . . . . . 1 3 . Classes Destroyed 13 | . 5 5 . 1 1 . . 1 . . . . . . . . Worker 7 | . . 2 2 . . . . 1 . . . . . 1 1 . Builder 8 | . 1 . 3 1 3 . . . . . . . . . . . Hauler 19 | . . 4 4 2 . . . 1 . 1 5 . . 2 . . Recycler 12 | . . 1 2 . 6 . . . . 1 1 . . . 1 . Operator 8 | . 1 3 2 . . . . 1 1 . . . . . . . Drone 17 | . . . . . 17 . . . . . . . . . . . Watcher 13 | . 2 3 3 . . . . . . 3 1 . . . 1 . Swarmer 33 | . 6 7 11 3 . . . . . . 4 . . . 2 . Grunt 29 | . 2 8 10 . 6 . . . . . 1 . . . 2 . Brawler 3 | . . 1 2 . . . . . . . . . . . . . Sentry 24 | . . 8 8 4 2 . . . . . 1 . . 1 . . Hunter 2 | . . . . 1 . . . 1 . . . . . . . . Programmer 3 | . . . . . . . . 2 . 1 . . . . . . Best Kill Streak 11 | . 3 4 11 7 8 . . 1 1 2 5 . . 2 7 . Combat Bots Only 7 | . 3 4 5 5 7 . . 1 . 1 5 . . 1 4 . Max Kills in Single Turn 6 | . 2 1 6 3 3 . . 1 1 1 2 . . 1 3 . Gunslinging 1 | . . . 1 . . . . . . . . . . . . . Exploded 4 | . 2 1 4 3 3 . . . . . . . . 1 2 . Melee 1 | . . . . . . . . 1 . 1 1 . . . . . Uniques/NPCs Destroyed . | . . . . . . . . . . . . . . . . . Combat | -11 -10 -9 -8 -8 -8 -6 -6 -6 -5 -4 -4 -4 -4 -4 -3 -3 -------- Run | Scr Mat Mat Mat Sto Rec Fac Was Fac Fac Fac Ext Cet Arc Hub Res Arm Damage Taken 9744 | . 349 1127 1260 359 201 . . 353 175 547 951 758 . 623 1420 1621 Core 3018 | . 50 141 197 32 . . . 130 124 179 210 231 . 404 200 1120 Absorbed by Shields 10 | . . . . . 10 . . . . . . . . . . . Core Remaining (%) 69 | 100 80 64 . . 58 . . 84 87 . . . . 10 . . Volleys Fired 327 | . 42 109 81 26 42 . . . . . 13 . . 3 11 . Largest 2 | . 2 2 2 2 2 . . . . . 1 . . 1 1 . Hottest 101 | . 60 101 90 78 86 . . . . . 81 . . 49 60 . Shots Fired 557 | . 80 199 134 52 65 . . . . . 13 . . 3 11 . Gun 483 | . 73 192 119 48 38 . . . . . 13 . . . . . Cannon 10 | . . 6 . . . . . . . . . . . . 4 . Launcher 64 | . 7 1 15 4 27 . . . . . . . . 3 7 . Special . | . . . . . . . . . . . . . . . . . Kinetic 293 | . 38 109 72 36 24 . . . . . 10 . . . 4 . Thermal 28 | . . 16 9 . . . . . . . 3 . . . . . Explosive 20 | . 7 . 2 1 . . . . . . . . . 3 7 . Electromagnetic 216 | . 35 74 51 15 41 . . . . . . . . . . . Robot Hit Streak 14 | . 12 11 14 8 7 . . . . . 5 . . 4 6 . Robot Miss Streak 12 | . 11 7 4 4 12 . . . . . 2 . . . 3 . Penetration Max 1 | . . . . . 1 . . . . . 1 . . . . . Secondary Targets 5 | . 1 3 1 . . . . . . . . . . . . . Max Gunslinging Chain 1 | . 1 1 1 . . . . . . . . . . . . . Shots Hit Robots 433 | . 39 149 93 35 20 . . 24 3 23 32 . . 8 7 . Core Hits 263 | . 17 77 65 16 35 . . 6 2 9 15 . . 4 17 . Critical Hits 4 | . . . . . 2 . . 1 . 1 . . . . . . Critical Kills . | . . . . . . . . . . . . . . . . . Critical Parts Destroyed 3 | . . . . . 1 . . 1 . 1 . . . . . . Melee Attacks 220 | . . 2 2 1 . . . 46 27 63 55 17 . 7 . . Impact 7 | . . . . . . . . . . . . . . 7 . . Slashing 213 | . . 2 2 1 . . . 46 27 63 55 17 . . . . Piercing . | . . . . . . . . . . . . . . . . . Sneak Attacks 25 | . . . . . . . . 8 . 3 11 . . 3 . . Combat Hostiles 1 | . . . . . . . . 1 . . . . . . . . Follow-up Attacks 11 | . . . . . . . . 4 1 6 . . . . . . Damage Inflicted 16376 | . 894 2032 2829 1076 2346 . . 1489 128 1208 2348 . . 522 1504 . Guns 5306 | . 517 1890 1473 670 475 . . . . . 281 . . . . . Cannons 151 | . . 82 . . . . . . . . . . . . 69 . Explosions 5598 | . 377 60 1356 406 1871 . . . . . . . . 123 1405 . Melee 5291 | . . . . . . . . 1489 128 1208 2067 . . 399 . . Ramming 30 | . . . . . . . . . . . . . . . 30 . Kinetic 2974 | . 264 923 748 471 286 . . . . . 213 . . . 69 . Thermal 869 | . . 215 374 109 103 . . . . . 68 . . . . . Explosive 2461 | . 377 . 308 177 71 . . . . . . . . 123 1405 . Electromagnetic 4751 | . 253 894 1399 319 1886 . . . . . . . . . . . Impact 399 | . . . . . . . . . . . . . . 399 . . Slashing 4892 | . . . . . . . . 1489 128 1208 2067 . . . . . Piercing . | . . . . . . . . . . . . . . . . . Highest Corruption 18 | . . . 3 3 4 . . 1 . 6 18 18 18 18 . 2 Average Corruption 4 | . . . 2 3 3 . . 1 . 5 6 18 18 18 . 1 Corruption Purged . | . . . . . . . . . . . . . . . . . Effects 111 | . . . 16 6 17 . . 3 . 1 27 25 2 14 . . Message Errors 21 | . . . 4 2 7 . . 1 . . 5 1 1 . . . Matter Fused 21 | . . . 6 2 2 . . . . . 9 . . 2 . . Heat Flow Errors 12 | . . . 3 . 3 . . . . . 3 2 . 1 . . Energy Discharges 6 | . . . . . 1 . . 1 . . 2 1 . 1 . . Parts Rejected 1 | . . . . . . . . . . . . 1 . . . . Data Loss (minor) 14 | . . . 2 1 4 . . 1 . 1 2 2 . 1 . . Data Loss (major) 5 | . . . . . . . . . . . 1 1 1 2 . . Misdirections 18 | . . . . . . . . . . . 1 11 . 6 . . Targeting Errors 13 | . . . 1 1 . . . . . . 4 6 . 1 . . Overload Shots . | . . . . . . . . . . . . . . . . . Overflow Damage 1273 | . 17 12 46 . 261 . . 200 . 149 295 . . 117 176 . Projectiles . | . . . . . . . . . . . . . . . . . Explosions 512 | . 17 12 46 . 261 . . . . . . . . . 176 . Melee 761 | . . . . . . . . 200 . 149 295 . . 117 . . Knockbacks . | . . . . . . . . . . . . . . . . . Impact . | . . . . . . . . . . . . . . . . . Kinetic . | . . . . . . . . . . . . . . . . . Secondary . | . . . . . . . . . . . . . . . . . Self-Inflicted Damage 590 | . 44 40 300 36 102 . . . . . . . . . 68 . Shots 15 | . 2 1 5 1 5 . . . . . . . . . 1 . Rammed 2 | . . . . . . . . . . . . . . . 2 . Targets Rammed 2 | . . . . . . . . . . . . . . . 2 . Kicked . | . . . . . . . . . . . . . . . . . Crushed . | . . . . . . . . . . . . . . . . . Highest Temperature 454 | . 96 177 301 66 276 . . . . . 209 249 . 247 454 . Average Temperature 76 | . 48 41 52 15 50 . . . . . 87 103 . 101 288 . Received Heat Transfer 1667 | . 96 345 360 90 41 . . 24 45 48 51 75 . 111 141 240 Effects 5 | . . . 3 . . . . . . . . . . . 2 . Shutdowns 2 | . . . . . . . . . . . . . . . 2 . Interference 3 | . . . 3 . . . . . . . . . . . . . Siege Activations . | . . . . . . . . . . . . . . . . . Robots Corrupted 4 | . . . 3 . 1 . . . . . . . . . . . Combat Hostiles 4 | . . . 3 . 1 . . . . . . . . . . . Parts Fried 20 | . 2 3 3 1 8 . . . . . . . . 3 . . Impact Corruptions 5 | . . . . . . . . . . . . . . 5 . . Robots Melted . | . . . . . . . . . . . . . . . . . Combat Hostiles . | . . . . . . . . . . . . . . . . . Parts Melted 1 | . . . . . 1 . . . . . . . . . . . Heat Transferred 1414 | . . 420 633 100 150 . . . . . 111 . . . . . Parts Sabotaged 4 | . . . . . . . . . 4 . . . . . . . Parts Stolen . | . . . . . . . . . . . . . . . . . Parts Stripped . | . . . . . . . . . . . . . . . . . Power Chain Reactions 18 | . . 1 8 4 5 . . . . . . . . . . . Missiles Intercepted . | . . . . . . . . . . . . . . . . . Alert | -11 -10 -9 -8 -8 -8 -6 -6 -6 -5 -4 -4 -4 -4 -4 -3 -3 ------- Run | Scr Mat Mat Mat Sto Rec Fac Was Fac Fac Fac Ext Cet Arc Hub Res Arm Peak Influence 1151 | . 289 312 540 494 516 1075 432 1151 609 576 257 95 60 283 433 535 Initial 1075 | . . . 61 194 126 1075 376 302 563 9 252 5 30 21 148 221 Average 272 | . 113 149 270 358 314 1075 391 820 367 237 112 35 53 69 236 298 Maximum Alert Level 4 | . 1 1 2 2 2 3 2 4 2 2 1 . . 1 2 2 Low Security (%) 50 | 100 92 76 38 14 23 . . . 39 54 89 100 100 94 54 . Level 1 26 | . 7 23 33 70 59 . 70 4 . 10 10 . . 5 41 75 Level 2 15 | . . . 27 14 17 . 29 21 60 35 . . . . 3 24 Level 3 5 | . . . . . . 100 . 65 . . . . . . . . Level 4 . | . . . . . . . . 7 . . . . . . . . Level 5 . | . . . . . . . . . . . . . . . . . High Security . | . . . . . . . . . . . . . . . . . Max Security . | . . . . . . . . . . . . . . . . . Squads Dispatched 25 | . . 2 4 1 2 . . 7 2 2 . 2 . 1 1 1 Investigation 4 | . . . 2 . . . . . . . . 2 . . . . Extermination 5 | . . . . . . . . 2 1 1 . . . . . 1 Reinforcement 12 | . . 2 2 1 2 . . 2 . 1 . . . 1 1 . Assault 1 | . . . . . . . . . 1 . . . . . . . Garrison 3 | . . . . . . . . 3 . . . . . . . . Intercept . | . . . . . . . . . . . . . . . . . Construction Impeded 3 | . . . . 1 2 . . . . . . . . . . . Haulers Reinforced 3 | . . . . . . . . 1 . . . . . 1 1 . Stealth | -11 -10 -9 -8 -8 -8 -6 -6 -6 -5 -4 -4 -4 -4 -4 -3 -3 --------- Run | Scr Mat Mat Mat Sto Rec Fac Was Fac Fac Fac Ext Cet Arc Hub Res Arm Distress Signals 21 | . 1 4 1 1 2 . . 1 . 1 3 1 1 1 2 2 Communications Jammed 14 | . . . . . . . . . . . 14 . . . . . Distress Signals 14 | . . . . . . . . . . . 14 . . . . . Times Spotted 316 | . 15 40 45 12 43 . 3 13 10 18 30 11 7 11 17 41 Peak Tracking Total 21 | . 4 5 8 4 4 . 3 4 8 6 7 7 7 6 8 21 Tactical Retreats 33 | . . 1 3 . 1 . 1 3 1 3 5 3 . 2 4 6 Traps | -11 -10 -9 -8 -8 -8 -6 -6 -6 -5 -4 -4 -4 -4 -4 -3 -3 ------- Run | Scr Mat Mat Mat Sto Rec Fac Was Fac Fac Fac Ext Cet Arc Hub Res Arm Traps Triggered 13 | . . 1 6 . . 1 . 1 1 1 . . . . . 2 Indirectly 4 | . . . 4 . . . . . . . . . . . . . Trap Hack Attempts . | . . . . . . . . . . . . . . . . . Triggered . | . . . . . . . . . . . . . . . . . Disarmed 4 | . . . . 4 . . . . . . . . . . . . Reprogrammed . | . . . . . . . . . . . . . . . . . Reused . | . . . . . . . . . . . . . . . . . Traps Extracted . | . . . . . . . . . . . . . . . . . Installed . | . . . . . . . . . . . . . . . . . Triggered 2 | . . . 2 . . . . . . . . . . . . . Machines | -11 -10 -9 -8 -8 -8 -6 -6 -6 -5 -4 -4 -4 -4 -4 -3 -3 ---------- Run | Scr Mat Mat Mat Sto Rec Fac Was Fac Fac Fac Ext Cet Arc Hub Res Arm Machines Disabled 33 | . 2 1 7 3 8 . . 7 . . 1 2 . 1 1 . Max in Single Turn 3 | . 1 1 2 2 3 . . . . . . 1 . 1 1 . Garrison Access 5 | . . . 1 . . 1 . . 2 1 . . . . . . Machines Sabotaged . | . . . . . . . . . . . . . . . . . Garrisons Compromised . | . . . . . . . . . . . . . . . . . Overloaded Fab Kills . | . . . . . . . . . . . . . . . . . Fab Network Shutdowns 2 | . . . . . . . . 1 . 1 . . . . . . Hacking | -11 -10 -9 -8 -8 -8 -6 -6 -6 -5 -4 -4 -4 -4 -4 -3 -3 --------- Run | Scr Mat Mat Mat Sto Rec Fac Was Fac Fac Fac Ext Cet Arc Hub Res Arm Machines Accessed 67 | . 8 11 11 3 1 1 . 5 7 4 6 3 1 5 1 . Terminals 49 | . 8 9 6 2 1 . . 2 5 2 6 3 . 5 . . Fabricators 2 | . . . . . . . . 1 . 1 . . . . . . Repair Stations 4 | . . 1 2 1 . . . . . . . . . . . . Recycling Units 2 | . . 1 . . . . . . . . . . . . 1 . Scanalyzers 4 | . . . 2 . . . . 2 . . . . . . . . Garrison Access 5 | . . . 1 . . 1 . . 2 1 . . . . . . Total Hacks 227 | . 20 41 36 8 2 2 . 20 27 7 13 9 25 12 5 . Successful 157 | . 12 25 23 5 1 1 . 14 20 5 13 4 25 6 3 . Failed 70 | . 8 16 13 3 1 1 . 6 7 2 . 5 . 6 2 . Catastrophic 10 | . . 2 3 . . . . 2 1 . . 1 . 1 . . Database Lockouts . | . . . . . . . . . . . . . . . . . Manual 49 | . 4 12 6 3 2 . . 7 6 2 7 . . . . . Terminals 149 | . 20 34 17 6 2 . . 8 25 3 13 9 . 12 . . Fabricators 6 | . . . . . . . . 3 . 3 . . . . . . Repair Stations 18 | . . 5 11 2 . . . . . . . . . . . . Recycling Units 7 | . . 2 . . . . . . . . . . . . 5 . Scanalyzers 16 | . . . 7 . . . . 9 . . . . . . . . Garrison Access 6 | . . . 1 . . 2 . . 2 1 . . . . . . Terminal Hacks 104 | . 10 18 6 2 1 . . 2 17 1 12 4 25 6 . . Record 29 | . . . . . . . . . 1 . . 3 25 . . . Robot Analysis 4 | . 1 3 . . . . . . . . . . . . . . Prototype ID Bank 2 | . 1 1 . . . . . . . . . . . . . . Open Door 7 | . . . . . . . . . . 1 5 1 . . . . Level Access Points 2 | . . 1 . . . . . . . . 1 . . . . . Branch Access Points 3 | . 1 1 . . . . . . . . 1 . . . . . Emergency Access Points 2 | . . 1 . . . . . . . . . . . 1 . . Terminal Index 3 | . 1 1 . . . . . . 1 . . . . . . . Alert Level 9 | . 1 1 1 . 1 . . 1 3 . 1 . . . . . Unreport Threat 11 | . 1 2 2 . . . . 1 4 . 1 . . . . . Locate Traps 10 | . 1 3 . 1 . . . . 3 . . . . 2 . . Disarm Traps 1 | . . . . 1 . . . . . . . . . . . . Security Status 2 | . . . . . . . . . 1 . 1 . . . . . Surveillance Status 1 | . . . . . . . . . . . 1 . . . . . Recall Investigation 1 | . . . 1 . . . . . . . . . . . . . Recall Extermination 1 | . . . . . . . . . 1 . . . . . . . Hauler Manifests 3 | . 1 2 . . . . . . . . . . . . . . Registered Components 3 | . 1 . 1 . . . . . 1 . . . . . . . Zone Layout 10 | . 1 2 1 . . . . . 2 . 1 . . 3 . . Fabricator Hacks 6 | . . . . . . . . 3 . 3 . . . . . . Load Schematic 2 | . . . . . . . . 1 . 1 . . . . . . Build 4 | . . . . . . . . 2 . 2 . . . . . . Repair Station Hacks 13 | . . 4 7 2 . . . . . . . . . . . . Scan Component 7 | . . 2 4 1 . . . . . . . . . . . . Repair 6 | . . 2 3 1 . . . . . . . . . . . . Recycling Unit Hacks 4 | . . 1 . . . . . . . . . . . . 3 . Report Inventory 1 | . . . . . . . . . . . . . . . 1 . Retrieve Matter 1 | . . . . . . . . . . . . . . . 1 . Retrieve Components 2 | . . 1 . . . . . . . . . . . . 1 . Scanalyzer 15 | . . . 6 . . . . 9 . . . . . . . . Insert Component 9 | . . . 4 . . . . 5 . . . . . . . . Analyze 6 | . . . 2 . . . . 4 . . . . . . . . Garrison Access Hacks 5 | . . . 1 . . 1 . . 2 1 . . . . . . Seal Access 5 | . . . 1 . . 1 . . 2 1 . . . . . . Unauthorized Hacks 10 | . 2 2 3 1 . . . . 1 . 1 . . . . . Terminals 10 | . 2 2 3 1 . . . . 1 . 1 . . . . . Track 3 | . . . 1 1 . . . . . . 1 . . . . . Assimilate 3 | . 1 1 . . . . . . 1 . . . . . . . Operators 4 | . 1 1 2 . . . . . . . . . . . . . Fabricators . | . . . . . . . . . . . . . . . . . Repair Stations . | . . . . . . . . . . . . . . . . . Recycling Units . | . . . . . . . . . . . . . . . . . Scanalyzers . | . . . . . . . . . . . . . . . . . Garrison Access . | . . . . . . . . . . . . . . . . . Data Cores Recovered 1 | . . . . . . . . . 1 . . . . . . . Used . | . . . . . . . . . . . . . . . . . Hacking Detections 56 | . 8 10 10 4 1 1 . 5 5 2 1 3 . 5 1 . Full Trace Events 2 | . . . . . . . . . . . . 2 . . . . Feedback Events . | . . . . . . . . . . . . . . . . . Feedback Blocked . | . . . . . . . . . . . . . . . . . Robot Schematics Acquired . | . . . . . . . . . . . . . . . . . Robots Built . | . . . . . . . . . . . . . . . . . Matter . | . . . . . . . . . . . . . . . . . Time . | . . . . . . . . . . . . . . . . . Total Robot Build Rating . | . . . . . . . . . . . . . . . . . Part Schematics Acquired 6 | . . . 2 . . . . 4 . . . . . . . . Parts Built 4 | . . . . . . . . 2 . 2 . . . . . . Matter 796 | . . . . . . . . 504 . 292 . . . . . . Time 206 | . . . . . . . . 134 . 72 . . . . . . Total Part Build Rating 14 | . . . . . . . . 8 . 6 . . . . . . Parts Repaired 6 | . . 2 3 1 . . . . . . . . . . . . Time 241 | . . 76 114 51 . . . . . . . . . . . . Parts Recycled . | . . . . . . . . . . . . . . . . . Recycled Matter . | . . . . . . . . . . . . . . . . . Retrieved Matter . | . . . . . . . . . . . . . . . . . Retrieved Components 5 | . . 3 . . . . . . . . . . . . 2 . Parts Scanalyzed 6 | . . . 2 . . . . 4 . . . . . . . . Part Schematics Acquired 6 | . . . 2 . . . . 4 . . . . . . . . Parts Damaged . | . . . . . . . . . . . . . . . . . Bothacking | -11 -10 -9 -8 -8 -8 -6 -6 -6 -5 -4 -4 -4 -4 -4 -3 -3 ------------ Run | Scr Mat Mat Mat Sto Rec Fac Was Fac Fac Fac Ext Cet Arc Hub Res Arm Used RIF Installer . | . . . . . . . . . . . . . . . . . Robots Hacked . | . . . . . . . . . . . . . . . . . Non-combat . | . . . . . . . . . . . . . . . . . Combat . | . . . . . . . . . . . . . . . . . Robot Hacks Applied . | . . . . . . . . . . . . . . . . . Relay Couplers Released . | . . . . . . . . . . . . . . . . . Robots Rewired 24 | . . . . . 13 . . . . . 7 . . . . 4 Allies Hacked . | . . . . . . . . . . . . . . . . . Hacks Repelled . | . . . . . . . . . . . . . . . . . Allies | -11 -10 -9 -8 -8 -8 -6 -6 -6 -5 -4 -4 -4 -4 -4 -3 -3 -------- Run | Scr Mat Mat Mat Sto Rec Fac Was Fac Fac Fac Ext Cet Arc Hub Res Arm Total Allies 52 | . 1 1 . . 13 . 19 . . . 14 . . . . 4 Largest Group 19 | . 1 1 . . 7 1 19 15 . . 6 . . . . 3 Highest-Rated Group 696 | . 10 9 . . 124 24 696 596 . . 376 . . . . 126 Highest-Rated Ally 156 | . 10 9 . . 24 24 50 50 . . 156 . . . . 47 Total Orders 5 | . . . . . . . . . . 3 2 . . . . . STAY 1 | . . . . . . . . . . . 1 . . . . . GUARD 1 | . . . . . . . . . . . 1 . . . . . EXPLORE 3 | . . . . . . . . . . 3 . . . . . . Ally Attacks 355 | . . . . . 72 . 117 79 . . 65 . . . . 22 Total Damage 10612 | . . . . . 673 . 5196 2573 . . 1786 . . . . 384 Kills 55 | . . . . . 15 . 10 21 . . 7 . . . . 2 Allies Corrupted . | . . . . . . . . . . . . . . . . . Allies Melted . | . . . . . . . . . . . . . . . . . Intel | -11 -10 -9 -8 -8 -8 -6 -6 -6 -5 -4 -4 -4 -4 -4 -3 -3 ------- Run | Scr Mat Mat Mat Sto Rec Fac Was Fac Fac Fac Ext Cet Arc Hub Res Arm Robot Analysis Total 4 | . 1 3 . . . . . . . . . . . . . . Derelict Logs Recovered . | . . . . . . . . . . . . . . . . . Drone Launches 4 | . . . . . . . . . . 4 . . . . . . Drone Recoveries 1 | . . . . . . . . . . 1 . . . . . . Exploration | -11 -10 -9 -8 -8 -8 -6 -6 -6 -5 -4 -4 -4 -4 -4 -3 -3 ------------- Run | Scr Mat Mat Mat Sto Rec Fac Was Fac Fac Fac Ext Cet Arc Hub Res Arm Turns Passed 10157 | 65 814 1925 1865 481 922 68 328 763 591 544 929 171 62 187 153 289 Spaces Moved 8922 | 35 481 972 812 169 392 58 331 1245 1133 827 1086 305 133 300 173 470 Core 80 | 6 . . . . . . . . . . 6 2 . 45 . 21 Treads 1645 | 29 78 906 632 . . . . . . . . . . . . . Legs 1210 | . 403 66 180 169 392 . . . . . . . . . . . Wheels . | . . . . . . . . . . . . . . . . . Hover 1127 | . . . . . . 58 331 317 . . . . . 216 173 32 Flight 4860 | . . . . . . . . 928 1133 827 1080 303 133 39 . 417 Fastest Speed 24 | 50 120 145 165 153 183 52 52 30 30 30 24 28 35 35 38 37 Average Speed 75 | 142 132 148 172 170 184 52 52 36 30 30 31 34 35 43 53 41 Slowest Speed 350 | 160 160 185 240 185 215 52 52 52 97 30 350 350 35 120 98 250 Overloaded Moves 83 | . . . . . . . . . . . 6 66 . 11 . . Propulsion Burnouts . | . . . . . . . . . . . . . . . . . Robots Hopped 20 | . . . . . . . . . . 4 4 1 . . . 11 Cave-ins Triggered 2 | . . . . . . . . . . . 2 . . . . . Exploration Rate (%) 52 | 4 84 83 83 42 87 3 96 29 27 25 73 89 92 36 6 39 Regions Visited 16 Branch Regions 7 Pre-discovered Areas . | . . . . . . . . . . . . . . . . . Known Exits Taken 6 | . . 1 . . . . . 1 1 1 1 . . 1 . . Unknown Exits Taken 8 | 1 1 . 1 1 1 . . . . . . 1 1 . 1 . Scrap Searched . | . . . . . . . . . . . . . . . . . Spaces Dug 92 | . 5 2 2 1 . . . 11 19 25 25 2 . . . . Terrain Destroyed 381 | . 38 2 79 23 29 . . 11 19 25 25 2 . 39 89 . Melee 87 | . . 2 2 1 . . . 11 19 25 25 2 . . . . Projectile 3 | . . . 1 . . . . . . . . . . . 2 . AOE 291 | . 38 . 76 22 29 . . . . . . . . 39 87 . Terrain Rammed . | . . . . . . . . . . . . . . . . . Walls Destroyed . | . . . . . . . . . . . . . . . . . Machines Disabled . | . . . . . . . . . . . . . . . . . Actions | -11 -10 -9 -8 -8 -8 -6 -6 -6 -5 -4 -4 -4 -4 -4 -3 -3 --------- Run | Scr Mat Mat Mat Sto Rec Fac Was Fac Fac Fac Ext Cet Arc Hub Res Arm Total 11482 | 47 575 1255 1144 309 527 104 486 1487 1341 1027 1571 342 147 341 222 557 Wait 1484 | . 20 107 173 98 15 11 156 174 153 106 371 16 15 2 7 60 Move 8872 | 34 480 971 811 168 391 58 330 1244 1132 821 1076 302 132 299 173 450 Hop 14 | . . . . . . . . . . 1 3 1 . . . 9 Pick Up 108 | 6 7 27 24 3 2 2 . 8 2 5 7 . . 6 7 2 Fast Attach 76 | 6 5 6 10 3 . . . 1 7 9 8 1 . 11 8 1 Attach 50 | . . 5 4 . 1 11 . 4 1 3 3 3 . 5 6 4 Detach 14 | . . . . . . . . 1 1 1 . 1 . 2 5 3 Swap 70 | 1 11 11 19 6 3 3 . 8 . 2 5 . . 1 . . Drop 123 | . 10 17 20 4 2 19 . 12 5 7 10 1 . 5 4 7 Fire 327 | . 42 109 81 26 42 . . . . . 13 . . 3 11 . Melee 195 | . . 2 2 1 . . . 35 22 54 55 17 . 7 . . Ram 1 | . . . . . . . . . . . . . . . 1 . Kick . | . . . . . . . . . . . . . . . . . Crush . | . . . . . . . . . . . . . . . . . Escape Stasis 38 | . . . . . . . . . 18 18 2 . . . . . Rewire 110 | . . . . . 71 . . . . . 18 . . . . 21 Trap . | . . . . . . . . . . . . . . . . . Miscellaneous . | . . . . . . . . . . . . . . . . . Route ------- -11/Scrapyard -10/Materials (discovered 5 exits: *Mat x3 / *Min x2) -9/Materials (discovered 5 exits: *Mat x3 / *Min x2) -8/Materials (discovered 4 exits: [*Fac x3] / *Sto) -8/Storage -8/Recycling -6/Factory -6/Waste -6/Factory -5/Factory (discovered 2 exits: *Fac x2) -4/Factory -4/Extension (discovered 3 exits: *Res x2 / *Cet) -4/Cetus (discovered 2 exits: *Res / *Arc) -4/Archives (discovered 3 exits: *Res / *Hub x2) -4/Hub_04(d) -3/Research -3/Armory History --------- Turn | Location | Event 26 | -11/Scrapyard | Discovered new exit (range 15) 66 | -11/Scrapyard | Entered Materials 300 | -10/Materials | Build established: Mutant 305 | -10/Materials | Discovered new exit (range 15) 348 | -10/Materials | Discovered new exit (range 15) 456 | -10/Materials | Discovered new exit (range 14) 564 | -10/Materials | Discovered new exit (range 4) 593 | -10/Materials | Discovered new exit (range 15) 719 | -10/Materials | Identified exit to Mines 880 | -10/Materials | Entered another Materials area 880 | -9/Materials | Evolved 2 slots: Propulsion x1, Utility x1 1215 | -9/Materials | Build established: Hauler-Mutant 1426 | -9/Materials | Discovered new exit (range 16) 1620 | -9/Materials | Identified exit to Mines 1700 | -9/Materials | Discovered new exit (range 3) 1843 | -9/Materials | Identified exit to Materials 1942 | -9/Materials | Repaired Adv. Treads 1982 | -9/Materials | Repaired Adv. Treads 2805 | -9/Materials | Entered another Materials area 2805 | -8/Materials | Evolved 2 slots: Utility x2 2871 | -8/Materials | Repaired Adv. Treads 2910 | -8/Materials | Repaired Adv. Treads 3315 | -8/Materials | Repaired Adv. Treads 3353 | -8/Materials | Discovered new exit (range 13) 3694 | -8/Materials | Discovered new exit (range 5) 4039 | -8/Materials | Discovered new exit (range 12) 4164 | -8/Materials | Lost 3 parts (1n2w) 4529 | -8/Materials | Discovered new exit (range 9) 4670 | -8/Materials | Entered Storage 4978 | -8/Storage | Repaired Hvy. Ion Engine 5144 | -8/Storage | Used back door to open Recycling access 5144 | -8/Storage | Discovered new exit (range 5) 5151 | -8/Storage | Entered Recycling 5177 | -8/Recycling | Spotter reported a threat 5220 | -8/Recycling | Spotter reported a threat 5254 | -8/Recycling | Spotter reported a threat 5311 | -8/Recycling | Spotter reported a threat 5317 | -8/Recycling | Spotter reported a threat 5319 | -8/Recycling | Spotter reported a threat 5336 | -8/Recycling | Spotter reported a threat 5337 | -8/Recycling | Spotter reported a threat 5343 | -8/Recycling | Spotter reported a threat 5372 | -8/Recycling | Spotter reported a threat 5396 | -8/Recycling | Spotter reported a threat 5409 | -8/Recycling | Spotter reported a threat 5462 | -8/Recycling | Spotter reported a threat 5488 | -8/Recycling | Spotter reported a threat 5489 | -8/Recycling | Spotter reported a threat 5519 | -8/Recycling | Spotter reported a threat 5532 | -8/Recycling | Spotter reported a threat 5612 | -8/Recycling | Spotter reported a threat 5619 | -8/Recycling | Spotter reported a threat 5628 | -8/Recycling | Spotter reported a threat 5635 | -8/Recycling | Spotter reported a threat 5658 | -8/Recycling | Destroyed 7 combat bots 5676 | -8/Recycling | Spotter reported a threat 5677 | -8/Recycling | Spotter reported a threat 5729 | -8/Recycling | Spotter reported a threat 5772 | -8/Recycling | Spotter reported a threat 5806 | -8/Recycling | Spotter reported a threat 5809 | -8/Recycling | Spotter reported a threat 5830 | -8/Recycling | Spotter reported a threat 5846 | -8/Recycling | Discovered new exit (range 12) 5866 | -8/Recycling | Spotter reported a threat 5866 | -8/Recycling | Spotter reported a threat 5872 | -8/Recycling | Spotter reported a threat 5924 | -8/Recycling | Spotter reported a threat 5924 | -8/Recycling | Spotter reported a threat 5924 | -8/Recycling | Spotter reported a threat 5924 | -8/Recycling | Spotter reported a threat 5974 | -8/Recycling | Spotter reported a threat 5974 | -8/Recycling | Spotter reported a threat 5974 | -8/Recycling | Spotter reported a threat 5977 | -8/Recycling | Spotter reported a threat 6024 | -8/Recycling | Spotter reported a threat 6024 | -8/Recycling | Spotter reported a threat 6025 | -8/Recycling | Spotter reported a threat 6070 | -8/Recycling | Spotter reported a threat 6070 | -8/Recycling | Spotter reported a threat 6070 | -8/Recycling | Spotter reported a threat 6073 | -8/Recycling | Entered Factory 6073 | -6/Factory | Accompanied by 1 ally 6073 | -6/Factory | Evolved 4 slots: Utility x4 6141 | -6/Factory | Sucked down chute 6141 | -6/Factory | Entered Waste 6145 | -6/Waste | 1 allies followed down the chute 6147 | -6/Waste | Spotted C-40 Crusher 6195 | -6/Waste | Spotted C-40 Crusher 6282 | -6/Waste | Spotted C-40 Crusher 6282 | -6/Waste | Spotted C-40 Crusher 6291 | -6/Waste | Spotted C-40 Crusher 6315 | -6/Waste | Warlord forces began an assault 6357 | -6/Waste | Build established: Hacker-Scout 6357 | -6/Waste | Allies destroyed C-40 Crusher 6378 | -6/Waste | Spotted C-40 Crusher 6380 | -6/Waste | Allies destroyed C-40 Crusher 6383 | -6/Waste | Allies destroyed C-40 Crusher 6411 | -6/Waste | Allies destroyed C-40 Crusher 6426 | -6/Waste | Discovered new exit (range 13) 6452 | -6/Waste | Identified exit to Factory 6469 | -6/Waste | Entered Factory 6469 | -6/Factory | Accompanied by 15 allies 6503 | -6/Factory | P-60 Hacker assimilated allied A1-LST(s) 6641 | -6/Factory | Garrison activated, responded to threat 7074 | -6/Factory | Discovered new exit (range 17) 7122 | -6/Factory | Fabricated Cld. VTOL Module? 7173 | -6/Factory | Local fabrication network quarantined 7195 | -6/Factory | Fabricated Cld. VTOL Module (x1) 7232 | -6/Factory | Identified exit to Factory 7232 | -6/Factory | Entered another Factory area 7232 | -5/Factory | Evolved 2 slots: Utility x2 7250 | -5/Factory | Discovered new exit (range 4) 7251 | -5/Factory | Identified exit to Factory 7532 | -5/Factory | First assault squad dispatched 7560 | -5/Factory | Build established: Wizard-Ninja 7815 | -5/Factory | Discovered exit to Factory (range 4) 7823 | -5/Factory | Entered another Factory area 7823 | -4/Factory | Evolved 2 slots: Utility x2 7872 | -4/Factory | Fabricated Hacking Suite (x1) 7910 | -4/Factory | Fabricated Hacking Suite (x1) 8118 | -4/Factory | Local fabrication network quarantined 8142 | -4/Factory | Build established: Wizard-Sprinter 8306 | -4/Factory | Lost 4 parts (1p2u1w) 8321 | -4/Factory | Discovered new exit (range 10) 8324 | -4/Factory | Identified exit to Extension 8367 | -4/Factory | Entered Extension 8425 | -4/Extension | Identified exit to Cetus 8425 | -4/Extension | Identified exit to Research 8597 | -4/Extension | Build established: Wizard-Ninja 8625 | -4/Extension | Spotted B-86 Titan 8789 | -4/Extension | Rescued a captive Derelict 8896 | -4/Extension | Rescued a captive Derelict 8917 | -4/Extension | Rescued a captive Derelict 9047 | -4/Extension | Rescued a captive Derelict 9048 | -4/Extension | Rescued a captive Derelict 9059 | -4/Extension | Lost 6 parts (1p1n3u1w) 9108 | -4/Extension | Rescued A7 9131 | -4/Extension | Spotted B-86 Titan 9242 | -4/Extension | Disrupted transfer network 9254 | -4/Extension | Crushed by falling debris 9279 | -4/Extension | Crushed by falling debris 9280 | -4/Extension | System corruption reached 10% 9296 | -4/Extension | Entered Cetus 9300 | -4/Cetus | Spotted Cetus Guard 9300 | -4/Cetus | Spotted Cetus Guard 9300 | -4/Cetus | Spotted Cetus Guard 9300 | -4/Cetus | Spotted Cetus Guard 9306 | -4/Cetus | Discovered exit to Research (range 19) 9310 | -4/Cetus | Lost 6 parts (1n5u) 9378 | -4/Cetus | Lost 4 parts (2n1u1w) 9458 | -4/Cetus | Core integrity fell below 50% 9459 | -4/Cetus | Discovered new exit (range 20) 9467 | -4/Cetus | Entered Archives 9473 | -4/Archives | Met Zhirov 9474 | -4/Archives | Discovered new exit (range 20) 9475 | -4/Archives | Unable to access archive contents 9479 | -4/Archives | Reinforcements dispatched to Archives 9479 | -4/Archives | Unable to access archive contents 9480 | -4/Archives | Discovered exit to Research (range 17) 9494 | -4/Archives | Lost 5 parts (1n3u1w) 9506 | -4/Archives | Discovered new exit (range 20) 9507 | -4/Archives | Read partially decrypted archive contents 9524 | -4/Archives | Reinforcements dispatched to Archives 9526 | -4/Archives | Zhirov warped through subspace 9529 | -4/Archives | Entered Hub_04(d) 9631 | -4/Hub_04(d) | Core integrity fell below 20% 9702 | -4/Hub_04(d) | Discovered exit to Research (range 12) 9716 | -4/Hub_04(d) | Entered Research 9716 | -3/Research | Evolved 2 slots: Power x1, Propulsion x1 9768 | -3/Research | Found Quantum Capacitor 9848 | -3/Research | Lost 4 parts (1n3u) 9862 | -3/Research | Discovered new exit (range 13) 9869 | -3/Research | Entered Armory 9916 | -3/Armory | Build established: Mutant 10083 | -3/Armory | Lost 4 parts (1p3u) 10124 | -3/Armory | Core integrity fell below 50% 10140 | -3/Armory | Core integrity fell below 20% 10158 | -3/Armory | Destroyed by P-80 Master with Gamma Rifle Last Messages --------------- 10099_ Attempting to rewire G-67 Veteran. 10100_ G-67 Veteran rewired. 10104_ Attempting to rewire G-67 Veteran. 10119_ ALERT: Rogue bot located, Programmers report to Armory Zone 5R. 10119_ Acquired 55 matter. 10120_ Acquired Xenon Bombardment Thruster. 10121_ Q-thruster destroyed. 10121_ Dropped Med. Storage Unit. 10122_ Acquired 36 matter. 10123_ Com. Battery destroyed. 10125_ Penetrated by Slug. 10125_ Xenon Bombardment Thruster destroyed. 10125_ Slug penetrates Y-72 Warden. 10125_ Penetrated by Slug. 10125_ Slug penetrates Wall. 10126_ Penetrated by Slug. 10126_ Slug penetrates Y-72 Warden. 10128_ Slug penetrates Wall. 10131_ Penetrated by Slug. 10148_ Imp. Gyrokinetic Inverter destroyed. Map ----- +----------------------------------------------------+ | | | | | | | | | | | | | | | | | | | | | | | | | | | | | | | #########?????????????????????####??###??????????? | | !! ##????#???????????????# ?????????? | | "" !! # ???? ???????????????# ] """"" ????????? | | "" !! # ???? #??????????????# """"" ???????? | | "" # "??? #?????????????## """"" #?????? | | # "??? #?????????????# #?????? | | ?# "??" #??????????????# "" ####### | | ???# """" #######+######## """ # | | ##/###### + gg p # F" # | | # / #gg g# #? """ # | | ###### # s @ #??? "" # | | # #????# # #s #????? ??# | | # #????# ; ########?????##+##### | | # #????# ###### #???????###### + "? | | # #????# #????# #???????+ ##### "? | | # #????########????# +???????### #???# "? | | # #????????????????# # ????????# #???# "? | | # #???##??????????## ###???????# #???# "" | | # ###= # #??????# ########## #???# | | ! " / * ???? ## #???####### | | ] + ] / ???? ## ###??????# | | ### # #??????? ## """ | | #???##???#???????# ### """ """ ########### | | #????????????????# #?# """ """" #?????????? | | """#????????????????# #?# "F"" #?????????? | | """#????????????????# #?# "" #?????????? | | ""#???????????????## ### = """ #?????????? | | F""#???????????????# ## "" #?????????? | | """################# #?????????? | | +?????????? | | ###+#### ##+###?????????? | | ###########+######### ## ?? #??????????????? | | ????????? ??????# ## #? #??????????????? | | ??????? ! ????# ## #? #??????????????? | | ????? +??? ## """ #? #??????????????? | +----------------------------------------------------+ Best States ------------- Heat Dissipation 46 Energy Generation 21 Energy Capacity 400 Matter Stores 300 Matter Capacity 300 Sight Range 20 Robot Scan Range 16 Terrain Scan Density 10 ECM Strength 2 Jamming Range 16 Cloak Strength 3 Additional Mass Support 9 Armor Coverage 750 Power Shielding 33 Phase Shifting 5 Evasion (%) 76 Core Analysis 10 Armor Integrity Analysis 50 Recoil Reduction 3 Offensive Hacking 70 Defensive Hacking 10 Item Schematics ----------------- Hacking Suite | -8/Materials | Scanalyzed Imp. VTOL Module | -8/Materials | Scanalyzed Katana | -6/Factory | Scanalyzed Airjet | -6/Factory | Scanalyzed Cld. VTOL Module | -6/Factory | Scanalyzed Greatsword | -6/Factory | Scanalyzed Robot Schematics ------------------ None Fabricated ------------ Cld. VTOL Module | x1 | -6/Factory Cld. VTOL Module | x1 | -6/Factory Hacking Suite | x1 | -4/Factory Hacking Suite | x1 | -4/Factory Alien Tech Used ----------------- None Achievements -------------- Cya! \\IAMDERELICT Challenges ------------ None Game ------ Seed UltimateAlertReplicator Manual? 0 Play Time 02:55:28 Cumulative 98.5 hours Start 2022.01.02 @ 18:27:26 End 2022.01.03 @ 00:49:06 Sessions 8 Manual Loads 0 Difficulty Rogue Special Mode None Game No. 53 Rogue 53 Adventurer 0 Explorer 0 Win Type - Total 3 Types 2/0/1/0/0/0/0/0/0 Lore% 54 Gallery% 58 Achievement% 43 Wizard Run 0 Options --------- ASCII 0 Keyboard 0 Movement Mouse Keybinds 0 Fullscreen 1 Font 18/SmallcapsGlow Map View 76x50 Tactical HUD 1 Map Filters NONE Filters NONE Steam 1 RUN: a7237aca-8bbe-43aa-902f-da8eafb7796b